[Event "ROU-chT 1st League 2019"]
[Site "Mamaia"]
[Date "2019.09.27"]
[Round "7.14"]
[White "Ciorgovean, Iustin"]
[Black "Gonda, Laszlo"]
[Result "0-1"]
[ECO "E32"]
[WhiteElo "2331"]
[BlackElo "2541"]
[Annotator "ChessBase"]
[PlyCount "66"]
[EventDate "2019.09.21"]
[EventType "team-tourn"]
[EventCountry "ROU"]
[SourceTitle "playchess.com"]
[Source "ChessBase"]
[SourceQuality "1"]
[TimeControl "40/5400+30:1800+30"]

1. d4 {[%emt 0:00:00]} Nf6 {[%emt 0:00:00]} 2. c4 {[%emt 0:00:00]} e6 {[%emt 0:00:00]} 3. Nc3 {[%emt 0:00:00]} Bb4 {[%emt 0:00:00]} 4. Qc2 {[%emt 0:00:00]} b6 {[%emt 0:00:00]} 5. e4 {[%emt 0:00:00]} c5 {[%emt 0:00:18]} 6. d5 {[%emt 0:00:00]} Qe7 {[%emt 0:01:29]} 7. Nge2 {[%emt 0:00:02]} exd5 {[%emt 0:02:03]} 8. exd5 {[%emt 0:00:33]} O-O {[%emt 0:00:45]} 9. Bd2 {[%emt 0:00:18]} d6 {[%emt 0:02:36]} 10. f3 {[%emt 0:00:33]} Nbd7 {[%emt 0:11:21]} 11. O-O-O {[%emt 0:00:17]} Re8 {[%emt 0:07:42]} 12. Ng3 {[%emt 0:04:53]} Nf8 {[%emt 0:00:18]} 13. Bd3 {[%emt 0:03:59]} a6 {[%emt 0:00:32]} 14. a3 {[%emt 0:04:01]} Ba5 {[%emt 0:00:18]} 15. Kb1 {[%emt 0:00:20]} Rb8 {[%emt 0:07:09]} 16. Nf5 {[%emt 0:03:43]} Bxf5 {[%emt 0:03:48]} 17. Bxf5 {[%emt 0:00:17]} b5 {[%emt 0:00:51]} 18. g4 {[%emt 0:03:11]} b4 {[%emt 0:08:08]} 19. Na4 {[%emt 0:07:09]} Qc7 {[%emt 0:00:56]} 20. axb4 {[%emt 0:01:12]} Bxb4 {[%emt 0:00:07]} 21. Bc1 {[%emt 0:04:29]} N6d7 {[%emt 0:00:59]} 22. g5 {[%emt 0:05:07]} Ne5 {[%emt 0:06:15]} 23. Rdf1 {[%emt 0:04:58]} Qa5 {[%emt 0:03:38]} 24. b3 {[%emt 0:00:10]} Ned7 {[%emt 0:07:47]} 25. f4 {[%emt 0:06:46]} Nb6 {[%emt 0:00:41]} 26. Nxb6 {[%emt 0:01:12]} Bc3 {[%emt 0:01:50]} 27. Bb2 {[%emt 0:03:26]} Bxb2 {[%emt 0:00:05]} 28. Kxb2 {[%emt 0:00:10]} Qxb6 {[%emt 0:01:20]} 29. Bd3 {[%emt 0:03:18]} Re3 {[%emt 0:02:35]} 30. Re1 {[%emt 0:01:12]} Rh3 {[%emt 0:00:41]} 31. Ra1 {[%emt 0:11:43]} Ng6 {[%emt 0:04:02]} 32. Ra3 {[%emt 0:05:38]} Nxf4 {[%emt 0:02:15]} 33. Bf1 {[%emt 0:00:05]} Rf3 {[%emt 0:06:39]} 0-1

[Event "ROU-chT 1st League 2019"]
[Site "Mamaia"]
[Date "2019.09.27"]
[Round "7.15"]
[White "Grigore, George-Gabriel"]
[Black "Barzanu, Iulian"]
[Result "1/2-1/2"]
[ECO "D27"]
[WhiteElo "2491"]
[BlackElo "2187"]
[Annotator "ChessBase"]
[PlyCount "82"]
[EventDate "2019.09.21"]
[EventType "team-tourn"]
[EventCountry "ROU"]
[SourceTitle "playchess.com"]
[Source "ChessBase"]
[SourceQuality "1"]
[TimeControl "40/5400+30:1800+30"]

1. d4 {[%emt 0:00:00]} d5 {[%emt 0:05:22]} 2. c4 {[%emt 0:00:00]} dxc4 {[%emt 0:00:37]} 3. Nf3 {[%emt 0:00:08]} Nf6 {[%emt 0:00:13]} 4. e3 {[%emt 0:00:06]} e6 {[%emt 0:00:18]} 5. Bxc4 {[%emt 0:00:07]} c5 {[%emt 0:00:36]} 6. O-O {[%emt 0:00:13]} a6 {[%emt 0:00:53]} 7. dxc5 {[%emt 0:07:12]} Qxd1 {[%emt 0:02:33]} 8. Rxd1 {[%emt 0:00:15]} Bxc5 {[%emt 0:00:56]} 9. Nbd2 {[%emt 0:00:14]} Nc6 {[%emt 0:40:26]} 10. Be2 {[%emt 0:07:26]} O-O {[%emt 0:04:18]} 11. Ne1 {[%emt 0:09:04]} Rd8 {[%emt 0:02:18]} 12. Nd3 {[%emt 0:02:54]} Bd6 {[%emt 0:11:24]} 13. Nc4 {[%emt 0:03:07]} Bc7 {[%emt 0:01:03]} 14. Bf3 {[%emt 0:07:33]} Rb8 {[%emt 0:02:24]} 15. Bxc6 {[%emt 0:04:35]} bxc6 {[%emt 0:00:13]} 16. b3 {[%emt 0:00:08]} Ne4 {[%emt 0:06:15]} 17. Bb2 {[%emt 0:00:53]} f6 {[%emt 0:00:07]} 18. Rac1 {[%emt 0:04:54]} Rb5 {[%emt 0:09:19]} 19. f3 {[%emt 0:10:42]} Nc5 {[%emt 0:00:11]} 20. Nf2 {[%emt 0:06:00]} Rxd1+ {[%emt 0:00:12]} 21. Rxd1 {[%emt 0:00:06]} Nb7 {[%emt 0:00:15]} 22. e4 {[%emt 0:03:02]} Kf7 {[%emt 0:03:31]} 23. Bc3 {[%emt 0:03:03]} a5 {[%emt 0:02:46]} 24. Nd3 {[%emt 0:08:57]} Ke7 {[%emt 0:00:51]} 25. Nc1 {[%emt 0:07:47]} Rh5 {[%emt 0:00:09]} 26. h3 {[%emt 0:00:48]} Nd6 {[%emt 0:00:29]} 27. Bxa5 {[%emt 0:06:24]} Rxa5 {[%emt 0:03:11]} 28. Rxd6 {[%emt 0:00:13]} Rxa2 {[%emt 0:02:29]} 29. Rxc6 {[%emt 0:01:08]} Ra7 {[%emt 0:00:19]} 30. Nb6 {[%emt 0:02:24]} Bd7 {[%emt 0:00:17]} 31. Nxd7 {[%emt 0:00:39]} Kxd7 {[%emt 0:00:02]} 32. Rc2 {[%emt 0:00:23]} Ra1 {[%emt 0:00:28]} 33. Kf2 {[%emt 0:00:25]} Rb1 {[%emt 0:00:45]} 34. Ke2 {[%emt 0:00:52]} Bd6 {[%emt 0:01:11]} 35. Kd3 {[%emt 0:02:35]} Ba3 {[%emt 0:00:25]} 36. Ne2 {[%emt 0:00:28]} Rxb3+ {[%emt 0:00:08]} 37. Rc3 {[%emt 0:00:13]} Rxc3+ {[%emt 0:00:25]} 38. Kxc3 {[%emt 0:00:07]} Bc5 {[%emt 0:00:57]} 39. Kc4 {[%emt 0:00:21]} Be3 {[%emt 0:00:15]} 40. Kd3 {[%emt 0:00:00]} Bb6 {[%emt 0:00:00]} 41. Kc4 {[%emt 0:01:05]} Be3 {[%emt 0:02:52]} 1/2-1/2

[Event "ROU-chT 1st League 2019"]
[Site "Mamaia"]
[Date "2019.09.27"]
[Round "7.17"]
[White "Szabo, Attila"]
[Black "Micu, Iulian"]
[Result "1/2-1/2"]
[ECO "E86"]
[WhiteElo "2239"]
[BlackElo "2165"]
[Annotator "NA"]
[PlyCount "45"]
[EventDate "2019.09.21"]
[EventType "team-tourn"]
[EventCountry "ROU"]
[SourceTitle "playchess.com"]
[Source "ChessBase"]
[SourceQuality "1"]
[TimeControl "40/5400+30:1800+30"]

1. c4 {[%emt 0:00:00]} Nf6 {[%emt 0:00:00]} 2. Nc3 {[%emt 0:00:00]} g6 {[%emt 0:00:07]} 3. d4 {[%emt 0:00:31]} Bg7 {[%emt 0:00:21]} 4. e4 {[%emt 0:00:27]} d6 {[%emt 0:00:11]} 5. f3 {[%emt 0:02:59]} O-O {[%emt 0:05:53]} 6. Be3 {[%emt 0:00:05]} e5 {[%emt 0:02:46]} 7. Nge2 {[%emt 0:02:50]} c6 {[%emt 0:04:36]} 8. d5 {[%emt 0:04:54]} a6 {[%emt 0:04:30]} 9. Nc1 {[%emt 0:17:38]} cxd5 {[%emt 0:01:17]} 10. cxd5 {[%emt 0:00:23]} Nh5 {[%emt 0:02:18]} 11. Qd2 {[%emt 0:07:09]} f5 {[%emt 0:03:48]} 12. Bd3 {[%emt 0:04:58]} Nd7 {[%emt 0:06:03]} 13. N1e2 {[%emt 0:06:18]} b6 {[%emt 0:07:41]} 14. O-O {[%emt 0:09:15]} f4 {[%emt 0:00:20]} 15. Bf2 {[%emt 0:00:04]} g5 {[%emt 0:00:30]} 16. b4 {[%emt 0:01:09]} Nhf6 {[%emt 0:04:24]} 17. g4 {[%emt 0:06:17]} h5 {[%emt 0:16:42]} 18. h3 {[%emt 0:02:17]} Rf7 {[%emt 0:00:26]} 19. Rac1 {[%emt 0:02:37]} Nf8 {[%emt 0:00:23]} 20. Na4 {[%emt 0:22:25]} hxg4 {[%emt 0:02:32]} 21. hxg4 {[%emt 0:00:51]} Rb8 {[%emt 0:07:03]} 22. Rc6 {[%emt 0:00:39]} Bd7 {[%emt 0:00:14]} 23. Bxa6 1/2-1/2

[Event "ROU-chT 1st League 2019"]
[Site "Mamaia"]
[Date "2019.09.27"]
[Round "7.18"]
[White "Jiroveanu, George"]
[Black "Vasiesiu, Victor"]
[Result "1-0"]
[ECO "B24"]
[WhiteElo "2241"]
[BlackElo "2251"]
[Annotator "NA"]
[PlyCount "101"]
[EventDate "2019.09.21"]
[EventType "team-tourn"]
[EventCountry "ROU"]
[SourceTitle "playchess.com"]
[Source "ChessBase"]
[SourceQuality "1"]
[TimeControl "40/5400+30:1800+30"]

1. e4 {[%emt 0:00:00]} c5 {[%emt 0:00:00]} 2. Nc3 {[%emt 0:00:00]} Nc6 {[%emt 0:00:06]} 3. g3 {[%emt 0:00:00]} g6 {[%emt 0:00:16]} 4. Bg2 {[%emt 0:00:16]} Bg7 {[%emt 0:00:04]} 5. Nge2 {[%emt 0:00:30]} d6 {[%emt 0:01:27]} 6. d3 {[%emt 0:01:23]} e6 {[%emt 0:00:08]} 7. O-O {[%emt 0:00:16]} Nge7 {[%emt 0:00:02]} 8. Be3 {[%emt 0:00:30]} Nd4 {[%emt 0:00:05]} 9. Qd2 {[%emt 0:00:31]} O-O {[%emt 0:00:23]} 10. Rab1 {[%emt 0:00:58]} Bd7 {[%emt 0:03:28]} 11. b4 {[%emt 0:12:44]} Rb8 {[%emt 0:05:03]} 12. f4 {[%emt 0:19:37]} b6 {[%emt 0:10:04]} 13. Bf2 {[%emt 0:03:58]} a5 {[%emt 0:25:10]} 14. Nxd4 {[%emt 0:05:20]} axb4 {[%emt 0:06:52]} 15. Nce2 {[%emt 0:00:28]} cxd4 {[%emt 0:00:08]} 16. Qxb4 {[%emt 0:00:58]} e5 {[%emt 0:04:33]} 17. Qxd6 {[%emt 0:00:33]} Bg4 {[%emt 0:03:03]} 18. Qxd8 {[%emt 0:03:33]} Rfxd8 19. Rfe1 {[%emt 0:00:52]} f6 {[%emt 0:03:45]} 20. fxe5 {[%emt 0:05:47]} fxe5 {[%emt 0:00:07]} 21. c4 {[%emt 0:00:17]} Nc6 {[%emt 0:03:57]} 22. h3 {[%emt 0:01:14]} Be6 {[%emt 0:00:16]} 23. Rb2 {[%emt 0:01:01]} Bf8 {[%emt 0:00:21]} 24. Reb1 {[%emt 0:01:19]} Bc5 {[%emt 0:00:09]} 25. Nc1 {[%emt 0:01:22]} Ra8 {[%emt 0:00:26]} 26. Be1 {[%emt 0:01:28]} Ra3 {[%emt 0:01:48]} 27. Rb3 {[%emt 0:03:01]} Ra7 {[%emt 0:07:17]} 28. Rb5 {[%emt 0:04:29]} Ra6 {[%emt 0:05:22]} 29. Kf1 {[%emt 0:06:26]} Kf7 {[%emt 0:01:50]} 30. Bd2 {[%emt 0:07:30]} Ke8 {[%emt 0:00:53]} 31. Ke2 {[%emt 0:02:32]} Rd7 {[%emt 0:00:10]} 32. R5b2 {[%emt 0:01:02]} Rf7 {[%emt 0:00:58]} 33. Nb3 {[%emt 0:00:38]} Ba3 {[%emt 0:00:52]} 34. Rc2 {[%emt 0:00:14]} Nb4 {[%emt 0:00:53]} 35. Bxb4 {[%emt 0:00:07]} Bxb4 {[%emt 0:00:03]} 36. Nxd4 {[%emt 0:02:02]} Rf2+ {[%emt 0:03:55]} 37. Kxf2 {[%emt 0:00:25]} Bc5 {[%emt 0:00:04]} 38. Bf3 {[%emt 0:01:25]} Bxd4+ {[%emt 0:01:17]} 39. Kg2 {[%emt 0:05:18]} Ke7 {[%emt 0:00:46]} 40. Bg4 {[%emt 0:00:00]} Bxg4 {[%emt 0:00:00]} 41. hxg4 {[%emt 0:01:15]} Kf6 {[%emt 0:00:30]} 42. Rb3 {[%emt 0:01:54]} Kg5 {[%emt 0:00:10]} 43. a3 {[%emt 0:02:40]} Kxg4 {[%emt 0:00:32]} 44. Ra2 {[%emt 0:00:10]} Ra7 {[%emt 0:01:33]} 45. a4 {[%emt 0:00:11]} Rf7 {[%emt 0:00:14]} 46. Rb5 {[%emt 0:06:08]} Rf3 {[%emt 0:01:02]} 47. Kh2 {[%emt 0:00:16]} Rxd3 {[%emt 0:03:08]} 48. a5 {[%emt 0:12:26]} bxa5 {[%emt 0:00:03]} 49. Rc2 {[%emt 0:00:04]} a4 {[%emt 0:19:13]} 50. c5 {[%emt 0:00:18]} Rb3 {[%emt 0:00:18]} 51. c6 {[%emt 0:01:07]} 1-0

[Event "ROU-chT 1st League 2019"]
[Site "Mamaia"]
[Date "2019.09.27"]
[Round "7.22"]
[White "Nastase, Robert-Paul"]
[Black "Pisu, Robert-Daniel"]
[Result "1-0"]
[ECO "B44"]
[WhiteElo "2280"]
[BlackElo "2244"]
[Annotator "NA"]
[PlyCount "131"]
[EventDate "2019.09.21"]
[EventType "team-tourn"]
[EventCountry "ROU"]
[SourceTitle "playchess.com"]
[Source "ChessBase"]
[SourceQuality "1"]
[TimeControl "40/5400+30:1800+30"]

1. e4 {[%emt 0:00:00]} c5 {[%emt 0:00:00]} 2. Nf3 {[%emt 0:00:00]} e6 {[%emt 0:00:00]} 3. d4 {[%emt 0:00:00]} cxd4 {[%emt 0:00:00]} 4. Nxd4 {[%emt 0:00:00]} Nc6 {[%emt 0:00:00]} 5. Nb5 {[%emt 0:00:00]} d6 {[%emt 0:00:09]} 6. c4 {[%emt 0:00:00]} Nf6 {[%emt 0:00:26]} 7. N5c3 {[%emt 0:00:00]} Be7 {[%emt 0:00:37]} 8. g3 {[%emt 0:00:09]} h5 {[%emt 0:00:18]} 9. h3 {[%emt 0:00:04]} h4 {[%emt 0:00:17]} 10. g4 {[%emt 0:00:03]} Nd7 {[%emt 0:00:11]} 11. Be2 {[%emt 0:00:50]} g5 {[%emt 0:05:37]} 12. Be3 {[%emt 0:00:06]} b6 {[%emt 0:00:55]} 13. Na3 {[%emt 0:00:42]} a6 {[%emt 0:03:23]} 14. Qd2 {[%emt 0:00:41]} Bb7 {[%emt 0:01:59]} 15. O-O-O {[%emt 0:02:55]} Nce5 {[%emt 0:08:16]} 16. Rhf1 {[%emt 0:00:35]} Nc5 {[%emt 0:05:30]} 17. f3 {[%emt 0:00:35]} Ng6 {[%emt 0:09:43]} 18. Kb1 {[%emt 0:00:05]} Rc8 {[%emt 0:03:29]} 19. Nc2 {[%emt 0:02:56]} O-O {[%emt 0:13:48]} 20. Rf2 {[%emt 0:10:25]} e5 {[%emt 0:23:14]} 21. Nb4 {[%emt 0:01:58]} Nf4 {[%emt 0:00:40]} 22. Bxf4 {[%emt 0:00:51]} gxf4 {[%emt 0:00:08]} 23. Nbd5 {[%emt 0:00:44]} Bg5 {[%emt 0:00:38]} 24. Bf1 {[%emt 0:00:26]} Ne6 {[%emt 0:02:51]} 25. Na4 {[%emt 0:01:22]} Bxd5 {[%emt 0:02:22]} 26. cxd5 {[%emt 0:01:55]} Nd4 {[%emt 0:03:16]} 27. Bxa6 {[%emt 0:04:54]} Rc2 {[%emt 0:00:39]} 28. Qxc2 {[%emt 0:00:03]} Nxc2 {[%emt 0:00:05]} 29. Rxc2 {[%emt 0:00:12]} Qa8 {[%emt 0:01:36]} 30. Bb5 {[%emt 0:00:05]} Qa5 {[%emt 0:00:56]} 31. Nc3 {[%emt 0:00:11]} Rb8 {[%emt 0:02:13]} 32. a3 {[%emt 0:00:29]} Kg7 {[%emt 0:01:49]} 33. Ka2 {[%emt 0:00:05]} Be7 {[%emt 0:00:58]} 34. b4 {[%emt 0:00:58]} Qa7 {[%emt 0:00:06]} 35. Kb3 {[%emt 0:00:06]} Rc8 {[%emt 0:03:00]} 36. Rdc1 {[%emt 0:00:12]} Bd8 {[%emt 0:03:44]} 37. Na4 {[%emt 0:00:11]} Rxc2 {[%emt 0:00:18]} 38. Rxc2 {[%emt 0:00:08]} Qe7 {[%emt 0:00:22]} 39. Rc6 {[%emt 0:02:00]} f5 {[%emt 0:03:47]} 40. gxf5 {[%emt 0:00:00]} Qg5 {[%emt 0:00:00]} 41. Rxd6 {[%emt 0:00:15]} Bf6 {[%emt 0:01:55]} 42. Nc3 {[%emt 0:10:27]} Qg2 {[%emt 0:07:46]} 43. a4 {[%emt 0:00:29]} Qxh3 {[%emt 0:03:11]} 44. a5 {[%emt 0:00:06]} bxa5 {[%emt 0:02:30]} 45. bxa5 {[%emt 0:00:04]} Qh1 {[%emt 0:01:31]} 46. Rd7+ {[%emt 0:00:31]} Kh6 {[%emt 0:01:30]} 47. a6 {[%emt 0:02:30]} Qa1 {[%emt 0:01:19]} 48. a7 {[%emt 0:04:40]} Qa5 {[%emt 0:01:09]} 49. Bc6 {[%emt 0:00:26]} h3 {[%emt 0:00:25]} 50. a8=Q {[%emt 0:00:40]} Qxa8 {[%emt 0:00:05]} 51. Bxa8 {[%emt 0:00:04]} h2 {[%emt 0:00:06]} 52. Rf7 {[%emt 0:00:18]} Bh4 {[%emt 0:01:59]} 53. d6 {[%emt 0:10:19]} h1=Q {[%emt 0:00:34]} 54. Rf8 {[%emt 0:03:16]} Kg7 {[%emt 0:01:10]} 55. Rc8 {[%emt 0:00:14]} Qxf3 {[%emt 0:00:59]} 56. Rc7+ {[%emt 0:03:04]} Kh6 {[%emt 0:01:17]} 57. d7 {[%emt 0:00:58]} Qd3 {[%emt 0:03:59]} 58. Bd5 {[%emt 0:00:18]} f3 {[%emt 0:00:57]} 59. f6 {[%emt 0:00:16]} f2 {[%emt 0:08:18]} 60. d8=Q {[%emt 0:00:11]} f1=Q {[%emt 0:00:12]} 61. Qh8+ {[%emt 0:01:50]} Kg5 {[%emt 0:00:07]} 62. Rg7+ {[%emt 0:00:11]} Kf4 {[%emt 0:00:07]} 63. Qxh4+ {[%emt 0:00:06]} Ke3 {[%emt 0:00:20]} 64. Rg3+ {[%emt 0:01:14]} Kd4 {[%emt 0:00:40]} 65. Rxd3+ {[%emt 0:00:09]} Qxd3 {[%emt 0:00:03]} 66. Qf2+ {[%emt 0:00:27]} 1-0

[Event "ROU-chT 1st League 2019"]
[Site "Mamaia"]
[Date "2019.09.27"]
[Round "7.23"]
[White "Gilea, Lucian"]
[Black "Pop, Alexandru"]
[Result "1/2-1/2"]
[ECO "A46"]
[WhiteElo "2291"]
[BlackElo "2274"]
[Annotator "NA"]
[PlyCount "107"]
[EventDate "2019.09.21"]
[EventType "team-tourn"]
[EventCountry "ROU"]
[SourceTitle "playchess.com"]
[Source "ChessBase"]
[SourceQuality "1"]
[TimeControl "40/5400+30:1800+30"]

1. d4 {[%emt 0:00:00]} Nf6 {[%emt 0:03:14]} 2. Nf3 {[%emt 0:00:00]} d5 {[%emt 0:00:32]} 3. c4 {[%emt 0:00:00]} e6 {[%emt 0:00:06]} 4. cxd5 {[%emt 0:00:19]} exd5 {[%emt 0:00:09]} 5. Nc3 {[%emt 0:00:08]} c6 {[%emt 0:00:44]} 6. Bg5 {[%emt 0:00:30]} Bf5 {[%emt 0:05:19]} 7. Nh4 {[%emt 0:06:29]} Be6 {[%emt 0:04:15]} 8. Nf3 {[%emt 0:10:48]} Nbd7 {[%emt 0:02:29]} 9. Qc2 {[%emt 0:02:12]} Bd6 {[%emt 0:00:51]} 10. e3 {[%emt 0:00:54]} O-O {[%emt 0:01:59]} 11. Bd3 {[%emt 0:00:21]} Qc7 {[%emt 0:00:42]} 12. Bh4 {[%emt 0:04:09]} h6 {[%emt 0:08:25]} 13. Bg3 {[%emt 0:00:13]} Rae8 {[%emt 0:13:33]} 14. Bxd6 {[%emt 0:01:00]} Qxd6 {[%emt 0:00:10]} 15. h3 {[%emt 0:03:27]} b6 {[%emt 0:03:59]} 16. O-O {[%emt 0:09:05]} g5 {[%emt 0:10:28]} 17. g4 {[%emt 0:07:38]} c5 {[%emt 0:02:53]} 18. Bf5 {[%emt 0:11:18]} Bxf5 {[%emt 0:01:12]} 19. Qxf5 {[%emt 0:00:27]} Qe6 {[%emt 0:00:20]} 20. Qxe6 {[%emt 0:01:42]} fxe6 {[%emt 0:01:25]} 21. Kg2 {[%emt 0:01:23]} Re7 {[%emt 0:03:33]} 22. Rad1 {[%emt 0:03:42]} Ref7 {[%emt 0:01:46]} 23. Ng1 {[%emt 0:01:47]} h5 {[%emt 0:08:56]} 24. f3 {[%emt 0:02:16]} Rd8 {[%emt 0:01:04]} 25. Nge2 {[%emt 0:14:38]} Nf8 {[%emt 0:05:57]} 26. dxc5 {[%emt 0:00:41]} bxc5 {[%emt 0:00:10]} 27. Na4 {[%emt 0:00:30]} Rc8 {[%emt 0:02:43]} 28. Rc1 {[%emt 0:00:13]} Rfc7 {[%emt 0:00:37]} 29. gxh5 {[%emt 0:01:07]} Nxh5 {[%emt 0:00:29]} 30. Kf2 {[%emt 0:00:02]} Kf7 {[%emt 0:01:01]} 31. Rc2 {[%emt 0:02:15]} Nd7 {[%emt 0:03:59]} 32. Rg1 {[%emt 0:01:34]} Kf6 {[%emt 0:00:20]} 33. Nec3 {[%emt 0:01:38]} Nb6 {[%emt 0:01:23]} 34. Nxb6 {[%emt 0:01:15]} axb6 {[%emt 0:00:05]} 35. Nb5 {[%emt 0:00:04]} Rd7 {[%emt 0:00:45]} 36. Rg4 {[%emt 0:00:14]} Ng7 {[%emt 0:01:51]} 37. h4 {[%emt 0:00:38]} gxh4 {[%emt 0:00:10]} 38. Rxh4 {[%emt 0:00:03]} Nf5 {[%emt 0:00:47]} 39. Rh1 {[%emt 0:00:15]} Rg8 {[%emt 0:00:31]} 40. Rh2 {[%emt 0:00:00]} Rdg7 {[%emt 0:00:00]} 41. Rd2 {[%emt 0:04:30]} Rg1 {[%emt 0:05:39]} 42. e4 {[%emt 0:03:02]} Ne7 {[%emt 0:00:45]} 43. Rh6+ {[%emt 0:02:06]} R1g6 {[%emt 0:00:19]} 44. Rxg6+ {[%emt 0:00:10]} Rxg6 {[%emt 0:00:18]} 45. Nc3 {[%emt 0:01:25]} Ke5 {[%emt 0:13:23]} 46. f4+ {[%emt 0:20:09]} Kxf4 {[%emt 0:00:43]} 47. exd5 {[%emt 0:00:01]} Nxd5 {[%emt 0:00:47]} 48. Nxd5+ {[%emt 0:00:08]} exd5 {[%emt 0:00:06]} 49. Rxd5 {[%emt 0:00:02]} Ke4 {[%emt 0:00:34]} 50. Rd2 {[%emt 0:00:06]} b5 {[%emt 0:00:22]} 51. Ke2 {[%emt 0:00:24]} b4 {[%emt 0:03:33]} 52. Kd1 {[%emt 0:00:23]} c4 {[%emt 0:00:36]} 53. Re2+ {[%emt 0:00:26]} Kd3 {[%emt 0:00:38]} 54. Rd2+ {[%emt 0:00:02]} 1/2-1/2

[Event "ROU-chT 1st League 2019"]
[Site "Mamaia"]
[Date "2019.09.27"]
[Round "7.24"]
[White "Ciorica, Mihai-Vlad"]
[Black "Ghimpu, Samuel-Timotei"]
[Result "0-1"]
[ECO "A50"]
[WhiteElo "1985"]
[BlackElo "2158"]
[Annotator "NA"]
[PlyCount "52"]
[EventDate "2019.09.21"]
[EventType "team-tourn"]
[EventCountry "ROU"]
[SourceTitle "playchess.com"]
[Source "ChessBase"]
[SourceQuality "1"]
[TimeControl "40/5400+30:1800+30"]

1. d4 {[%emt 0:00:00]} Nf6 {[%emt 0:00:00]} 2. c4 {[%emt 0:00:00]} g6 {[%emt 0:00:00]} 3. f3 {[%emt 0:00:02]} e5 {[%emt 0:00:00]} 4. dxe5 {[%emt 0:16:51]} Nh5 {[%emt 0:01:01]} 5. g3 {[%emt 0:00:05]} Nc6 {[%emt 0:00:05]} 6. f4 {[%emt 0:00:26]} d6 {[%emt 0:00:04]} 7. exd6 {[%emt 0:02:10]} Bxd6 {[%emt 0:00:01]} 8. e4 {[%emt 0:04:35]} Qe7 {[%emt 0:19:51]} 9. Bg2 {[%emt 0:07:00]} Be6 {[%emt 0:00:14]} 10. Qc2 {[%emt 0:08:35]} O-O-O {[%emt 0:01:03]} 11. a3 {[%emt 0:00:11]} Bxf4 {[%emt 0:04:26]} 12. Bxf4 {[%emt 0:15:40]} Nxf4 {[%emt 0:00:15]} 13. gxf4 {[%emt 0:00:07]} Qh4+ {[%emt 0:00:04]} 14. Kf1 {[%emt 0:00:17]} Bxc4+ {[%emt 0:08:53]} 15. Ne2 {[%emt 0:02:18]} Bd3 {[%emt 0:01:17]} 16. Qc1 {[%emt 0:18:48]} Bxe2+ {[%emt 0:01:11]} 17. Kxe2 {[%emt 0:00:04]} Nd4+ {[%emt 0:00:05]} 18. Ke3 {[%emt 0:00:14]} Nf5+ {[%emt 0:03:47]} 19. exf5 {[%emt 0:07:12]} Rhe8+ {[%emt 0:00:27]} 20. Be4 {[%emt 0:00:04]} gxf5 {[%emt 0:14:41]} 21. Nc3 {[%emt 0:00:15]} fxe4 {[%emt 0:00:02]} 22. Qg1 {[%emt 0:14:59]} Rd3+ {[%emt 0:06:41]} 23. Ke2 {[%emt 0:00:04]} Red8 {[%emt 0:00:05]} 24. Qc5 {[%emt 0:01:23]} Rd2+ {[%emt 0:01:36]} 25. Kf1 {[%emt 0:00:23]} Qxf4+ {[%emt 0:00:25]} 26. Ke1 {[%emt 0:00:04]} e3 {[%emt 0:00:13]} 0-1

[Event "ROU-chT 1st League 2019"]
[Site "Mamaia"]
[Date "2019.09.27"]
[Round "7.26"]
[White "Svetushkin, Dmitry"]
[Black "Sivuk, Vitaly"]
[Result "1/2-1/2"]
[ECO "D27"]
[WhiteElo "2534"]
[BlackElo "2559"]
[Annotator "ChessBase"]
[PlyCount "20"]
[EventDate "2019.09.21"]
[EventType "team-tourn"]
[EventCountry "ROU"]
[SourceTitle "playchess.com"]
[Source "ChessBase"]
[SourceQuality "1"]
[TimeControl "40/5400+30:1800+30"]

1. d4 {[%emt 0:00:00]} Nf6 {[%emt 0:00:00]} 2. c4 {[%emt 0:00:27]} e6 {[%emt 0:00:00]} 3. Nf3 {[%emt 0:00:15]} d5 {[%emt 0:00:00]} 4. e3 {[%emt 0:00:15]} dxc4 {[%emt 0:00:08]} 5. Bxc4 {[%emt 0:00:11]} c5 {[%emt 0:00:09]} 6. O-O {[%emt 0:01:04]} a6 {[%emt 0:00:13]} 7. a4 {[%emt 0:02:34]} Nc6 {[%emt 0:00:17]} 8. Nc3 {[%emt 0:00:10]} Be7 {[%emt 0:00:45]} 9. Qe2 {[%emt 0:01:19]} cxd4 {[%emt 0:00:15]} 10. exd4 {[%emt 0:00:30]} O-O {[%emt 0:03:45]} 1/2-1/2

[Event "ROU-chT 1st League 2019"]
[Site "Mamaia"]
[Date "2019.09.27"]
[Round "7.27"]
[White "Georgescu, Tiberiu-Marian"]
[Black "Iordachescu, Viorel"]
[Result "1/2-1/2"]
[ECO "D62"]
[WhiteElo "2508"]
[BlackElo "2602"]
[Annotator "ChessBase"]
[PlyCount "26"]
[EventDate "2019.09.21"]
[EventType "team-tourn"]
[EventCountry "ROU"]
[SourceTitle "playchess.com"]
[Source "ChessBase"]
[SourceQuality "1"]
[TimeControl "40/5400+30:1800+30"]

1. d4 {[%emt 0:01:23]} Nf6 {[%emt 0:00:00]} 2. Nf3 {[%emt 0:00:37]} e6 {[%emt 0:00:05]} 3. c4 {[%emt 0:00:18]} d5 {[%emt 0:01:05]} 4. Nc3 {[%emt 0:01:35]} Be7 {[%emt 0:00:22]} 5. Bg5 {[%emt 0:01:21]} O-O {[%emt 0:00:28]} 6. e3 {[%emt 0:00:32]} Nbd7 {[%emt 0:00:29]} 7. Qc2 {[%emt 0:03:11]} c5 {[%emt 0:02:18]} 8. cxd5 {[%emt 0:02:18]} cxd4 {[%emt 0:01:59]} 9. Nxd4 {[%emt 0:02:15]} Nxd5 {[%emt 0:00:13]} 10. Bxe7 {[%emt 0:01:02]} Nxe7 {[%emt 0:00:06]} 11. Be2 {[%emt 0:01:20]} Nf6 {[%emt 0:00:31]} 12. O-O {[%emt 0:01:19]} Bd7 {[%emt 0:00:16]} 13. Rfd1 {[%emt 0:02:31]} Qb6 {[%emt 0:00:38]} 1/2-1/2

[Event "ROU-chT 1st League 2019"]
[Site "Mamaia"]
[Date "2019.09.27"]
[Round "7.28"]
[White "Nevednichy, Vladislav"]
[Black "David, Alexandru-Vasile"]
[Result "1/2-1/2"]
[ECO "B31"]
[WhiteElo "2522"]
[BlackElo "2424"]
[Annotator "ChessBase"]
[PlyCount "23"]
[EventDate "2019.09.21"]
[EventType "team-tourn"]
[EventCountry "ROU"]
[SourceTitle "playchess.com"]
[Source "ChessBase"]
[SourceQuality "1"]
[TimeControl "40/5400+30:1800+30"]

1. e4 {[%emt 0:00:00]} c5 {[%emt 0:00:32]} 2. Nf3 {[%emt 0:00:00]} Nc6 {[%emt 0:00:28]} 3. Bb5 {[%emt 0:00:00]} g6 {[%emt 0:04:16]} 4. Bxc6 {[%emt 0:00:24]} dxc6 {[%emt 0:01:52]} 5. d3 {[%emt 0:01:34]} Bg7 {[%emt 0:00:10]} 6. Nc3 {[%emt 0:00:28]} Bg4 {[%emt 0:05:27]} 7. h3 {[%emt 0:05:12]} Bxf3 {[%emt 0:01:30]} 8. Qxf3 {[%emt 0:00:03]} Nf6 {[%emt 0:00:06]} 9. Be3 {[%emt 0:00:08]} Nd7 {[%emt 0:02:29]} 10. O-O {[%emt 0:01:53]} e5 {[%emt 0:02:18]} 11. a4 {[%emt 0:00:32]} O-O {[%emt 0:03:18]} 12. Qd1 {[%emt 0:04:39]} 1/2-1/2